[Event "Titled Tuesday Blitz June 20 Late 2023"]
[White "Fiedorek, Michal"]
[Black "Pinheiro, Iung Alicio de O."]
[WhiteFideId "1199528"]
[BlackFideId "2104350"]
[WhiteElo "2135"]
[BlackElo "2283"]
[Result "0-1"]
[Round "7"]
[TimeControl "180+2"]
[Date "2023.06.20"]
[WhiteClock "0:00:00"]
[BlackClock "0:00:11"]
[Board "79"]

1. e4 {[%clk 0:02:57]}  e5 {[%clk 0:02:57]} 2. Nf3 {[%clk 0:02:57]}  Nc6 {[%clk 0:02:57]} 3. Bc4 {[%clk 0:02:58]}  Nf6 {[%clk 0:02:56]} 4. d3 {[%clk 0:02:57]}  Be7 {[%clk 0:02:55]} 5. O-O {[%clk 0:02:56]}  O-O {[%clk 0:02:55]} 6. a4 {[%clk 0:02:56]}  d6 {[%clk 0:02:55]} 7. c3 {[%clk 0:02:56]}  Kh8 {[%clk 0:02:54]} 8. Re1 {[%clk 0:02:53]}  Ng8 {[%clk 0:02:54]} 9. d4 {[%clk 0:02:53]}  f5 {[%clk 0:02:52]} 10. exf5 {[%clk 0:02:52]}  d5 {[%clk 0:02:48]} 11. Bb5 {[%clk 0:02:49]}  e4 {[%clk 0:02:48]} 12. Ne5 {[%clk 0:02:44]}  Nxe5 {[%clk 0:02:27]} 13. dxe5 {[%clk 0:02:45]}  Bxf5 {[%clk 0:02:27]} 14. a5 {[%clk 0:02:37]}  c6 {[%clk 0:02:17]} 15. Bf1 {[%clk 0:02:37]}  a6 {[%clk 0:02:16]} 16. Bf4 {[%clk 0:02:21]}  Bc5 {[%clk 0:02:10]} 17. Be3 {[%clk 0:01:54]}  Bxe3 {[%clk 0:01:59]} 18. Rxe3 {[%clk 0:01:55]}  Nh6 {[%clk 0:01:52]} 19. h3 {[%clk 0:01:45]}  Nf7 {[%clk 0:01:48]} 20. Qd4 {[%clk 0:01:45]}  Qe7 {[%clk 0:01:37]} 21. Nd2 {[%clk 0:01:39]}  Nxe5 {[%clk 0:01:35]} 22. b4 {[%clk 0:01:33]}  Bg6 {[%clk 0:01:31]} 23. Nb3 {[%clk 0:01:30]}  Qf6 {[%clk 0:01:29]} 24. Rg3 {[%clk 0:01:23]}  Rae8 {[%clk 0:01:29]} 25. Nc5 {[%clk 0:01:22]}  Re7 {[%clk 0:01:29]} 26. Rd1 {[%clk 0:00:59]}  h5 {[%clk 0:01:24]} 27. Qe3 {[%clk 0:00:35]}  Ref7 {[%clk 0:01:13]} 28. Rd2 {[%clk 0:00:30]}  Bf5 {[%clk 0:01:01]} 29. Rg5 {[%clk 0:00:28]}  g6 {[%clk 0:00:55]} 30. Rg3 {[%clk 0:00:26]}  Kh7 {[%clk 0:00:53]} 31. Qf4 {[%clk 0:00:21]}  Bc8 {[%clk 0:00:43]} 32. Qxf6 {[%clk 0:00:20]}  Rxf6 {[%clk 0:00:44]} 33. Rg5 {[%clk 0:00:18]}  Nf7 {[%clk 0:00:39]} 34. Rg3 {[%clk 0:00:18]}  h4 {[%clk 0:00:37]} 35. Re3 {[%clk 0:00:16]}  Nd6 {[%clk 0:00:38]} 36. Re1 {[%clk 0:00:06]}  g5 {[%clk 0:00:32]} 37. c4 {[%clk 0:00:05]}  dxc4 {[%clk 0:00:20]} 38. Nxe4 {[%clk 0:00:04]}  Nxe4 {[%clk 0:00:19]} 39. Rxe4 {[%clk 0:00:05]}  c3 {[%clk 0:00:18]} 40. Rc2 {[%clk 0:00:05]}  Bf5 {[%clk 0:00:15]} 41. Re7+ {[%clk 0:00:05]}  R6f7 {[%clk 0:00:15]} 42. Rxf7+ {[%clk 0:00:05]}  Rxf7 {[%clk 0:00:15]} 43. Rxc3 {[%clk 0:00:06]}  Re7 {[%clk 0:00:16]} 44. Re3 {[%clk 0:00:05]}  Rd7 {[%clk 0:00:14]} 45. Re5 {[%clk 0:00:06]}  Kg6 {[%clk 0:00:14]} 46. g4 {[%clk 0:00:05]}  hxg3 {[%clk 0:00:12]} 47. fxg3 {[%clk 0:00:05]}  Rd1 {[%clk 0:00:12]} 48. Kf2 {[%clk 0:00:05]}  Kf6 {[%clk 0:00:13]} 49. Re8 {[%clk 0:00:04]}  Be6 {[%clk 0:00:13]} 50. Rb8 {[%clk 0:00:03]}  Rd2+ {[%clk 0:00:11]} 51. Ke3 {[%clk 0:00:03]}  Rd1 {[%clk 0:00:11]} 52. Kf2 {[%clk 0:00:04]}  Rd2+ {[%clk 0:00:10]} 53. Ke3 {[%clk 0:00:04]}  Rb2 {[%clk 0:00:11]} 54. Rxb7 {[%clk 0:00:03]}  Rb3+ {[%clk 0:00:11]} 55. Kf2 {[%clk 0:00:03]}  Ke5 {[%clk 0:00:10]} 56. Rb6 {[%clk 0:00:04]}  Bd5 {[%clk 0:00:11]} 57. Bxa6 {[%clk 0:00:03]}  Rf3+ {[%clk 0:00:10]} 58. Ke2 {[%clk 0:00:03]}  Rxg3 {[%clk 0:00:10]} 59. Bd3 {[%clk 0:00:04]}  Rxh3 {[%clk 0:00:10]} 60. a6 {[%clk 0:00:04]}  Rh2+ {[%clk 0:00:11]} 61. Ke3 {[%clk 0:00:04]}  Ra2 {[%clk 0:00:12]} 62. Rb7 {[%clk 0:00:03]}  Ra4 {[%clk 0:00:12]} 63. a7 {[%clk 0:00:04]}  g4 {[%clk 0:00:11]} 64. Re7+ {[%clk 0:00:04]}  Kd6 {[%clk 0:00:12]} 65. Rg7 {[%clk 0:00:04]}  Bf3 {[%clk 0:00:11]} 66. Kd4 {[%clk 0:00:02]}  c5+ {[%clk 0:00:10]} 67. Ke3 {[%clk 0:00:01]}  cxb4 {[%clk 0:00:11]} 68. Bb5 {[%clk 0:00:01]}  Ra3+ {[%clk 0:00:11]} 69. Kf4 {[%clk 0:00:02]}  b3 {[%clk 0:00:11]} 70. Bd3 {[%clk 0:00:02]}  b2 {[%clk 0:00:11]} 71. Bb1 {[%clk 0:00:02]}  Ra1 {[%clk 0:00:11]} 72. Bf5 {[%clk 0:00:03]}  b1=Q {[%clk 0:00:10]} 73. Bxb1 {[%clk 0:00:03]}  Rxb1 {[%clk 0:00:11]} 74. a8=Q {[%clk 0:00:02]}  Bxa8 {[%clk 0:00:10]} 75. Rxg4 {[%clk 0:00:03]}  Bd5 {[%clk 0:00:11]} 76. Rg6+ {[%clk 0:00:03]}  Kc5 {[%clk 0:00:11]} 77. Rg5 {[%clk 0:00:04]}  Rf1+ {[%clk 0:00:11]} 78. Ke5 {[%clk 0:00:04]}  Re1+ {[%clk 0:00:11]} 79. Kf6 {[%clk 0:00:04]}  Kd4 {[%clk 0:00:11]} 80. Kg7 {[%clk 0:00:02]}  Re7+ {[%clk 0:00:10]} 81. Kf6 {[%clk 0:00:03]}  Rf7+ {[%clk 0:00:10]} 82. Kg6 {[%clk 0:00:03]}  Rf1 {[%clk 0:00:11]} 83. Kg7 {[%clk 0:00:03]}  Be4 {[%clk 0:00:10]} 84. Ra5 {[%clk 0:00:02]}  Bd5 {[%clk 0:00:10]} 85. Ra7 {[%clk 0:00:01]}  Ke5 {[%clk 0:00:10]} 86. Re7+ {[%clk 0:00:01]}  Be6 {[%clk 0:00:11]} 87. Rb7 {[%clk 0:00:00]}  Rg1+ {[%clk 0:00:11]} 0-1


[Site "https://www.chess.com"]

[Event "Titled Tuesday Blitz June 20 Late 2023"]
[White "Leenhouts, Koen"]
[Black "Carrasco Miranda, Andres"]
[WhiteFideId "1008439"]
[BlackFideId "3405990"]
[WhiteElo "2409"]
[BlackElo "2183"]
[Result "1-0"]
[Round "7"]
[TimeControl "180+2"]
[Date "2023.06.20"]
[WhiteClock "0:02:08"]
[BlackClock "0:02:03"]
[Board "81"]

1. e4 {[%clk 0:03:00]}  e5 {[%clk 0:02:57]} 2. Nf3 {[%clk 0:02:59]}  Nc6 {[%clk 0:02:57]} 3. Bb5 {[%clk 0:02:58]}  Nf6 {[%clk 0:02:57]} 4. d3 {[%clk 0:02:57]}  Bc5 {[%clk 0:02:56]} 5. O-O {[%clk 0:02:56]}  Nd4 {[%clk 0:02:56]} 6. Nxd4 {[%clk 0:02:55]}  Bxd4 {[%clk 0:02:56]} 7. c3 {[%clk 0:02:55]}  Bb6 {[%clk 0:02:57]} 8. Be3 {[%clk 0:02:53]}  c6 {[%clk 0:02:56]} 9. Bc4 {[%clk 0:02:51]}  d5 {[%clk 0:02:54]} 10. exd5 {[%clk 0:02:51]}  cxd5 {[%clk 0:02:54]} 11. Bb5+ {[%clk 0:02:43]}  Bd7 {[%clk 0:02:53]} 12. Bxd7+ {[%clk 0:02:43]}  Qxd7 {[%clk 0:02:54]} 13. Bxb6 {[%clk 0:02:41]}  axb6 {[%clk 0:02:54]} 14. Re1 {[%clk 0:02:41]}  Qc7 {[%clk 0:02:49]} 15. d4 {[%clk 0:02:23]}  e4 {[%clk 0:02:49]} 16. Nd2 {[%clk 0:02:23]}  O-O {[%clk 0:02:49]} 17. Nf1 {[%clk 0:02:24]}  Rfd8 {[%clk 0:02:31]} 18. Ne3 {[%clk 0:02:23]}  g6 {[%clk 0:02:31]} 19. h3 {[%clk 0:02:23]}  Kg7 {[%clk 0:02:31]} 20. a3 {[%clk 0:02:22]}  Nh5 {[%clk 0:02:27]} 21. Qg4 {[%clk 0:02:19]}  Qf4 {[%clk 0:02:26]} 22. g3 {[%clk 0:02:13]}  Qxg4 {[%clk 0:02:19]} 23. hxg4 {[%clk 0:02:13]}  Nf6 {[%clk 0:02:18]} 24. Kg2 {[%clk 0:02:13]}  h5 {[%clk 0:02:13]} 25. gxh5 {[%clk 0:02:11]}  Nxh5 {[%clk 0:02:14]} 26. Rh1 {[%clk 0:02:10]}  Rd6 {[%clk 0:02:03]} 27. Rxh5 {[%clk 0:02:08]} 1-0


[Site "https://www.chess.com"]

[Event "Titled Tuesday Blitz June 20 Late 2023"]
[White "Sivakumar, Shaaketh"]
[Black "Perez, Maximiliano"]
[WhiteFideId "30940176"]
[BlackFideId "117234"]
[WhiteElo "2174"]
[BlackElo "2334"]
[Result "1-0"]
[Round "7"]
[TimeControl "180+2"]
[Date "2023.06.20"]
[WhiteClock "0:00:14"]
[BlackClock "0:00:03"]
[Board "82"]

1. b3 {[%clk 0:03:00]}  Nf6 {[%clk 0:02:59]} 2. Bb2 {[%clk 0:03:00]}  e6 {[%clk 0:03:00]} 3. e3 {[%clk 0:03:00]}  b6 {[%clk 0:02:58]} 4. Nf3 {[%clk 0:02:57]}  Bb7 {[%clk 0:02:58]} 5. Be2 {[%clk 0:02:57]}  Be7 {[%clk 0:02:58]} 6. O-O {[%clk 0:02:58]}  O-O {[%clk 0:02:59]} 7. c4 {[%clk 0:02:58]}  d5 {[%clk 0:02:58]} 8. Nc3 {[%clk 0:02:57]}  c5 {[%clk 0:02:54]} 9. cxd5 {[%clk 0:02:56]}  Nxd5 {[%clk 0:02:52]} 10. d4 {[%clk 0:02:53]}  Nc6 {[%clk 0:02:48]} 11. Nxd5 {[%clk 0:02:51]}  Qxd5 {[%clk 0:02:47]} 12. dxc5 {[%clk 0:02:50]}  Qxd1 {[%clk 0:02:18]} 13. Rfxd1 {[%clk 0:02:51]}  Bxc5 {[%clk 0:02:17]} 14. Rd7 {[%clk 0:02:45]}  Rab8 {[%clk 0:01:51]} 15. Ne5 {[%clk 0:02:43]}  Rfd8 {[%clk 0:01:49]} 16. Rad1 {[%clk 0:02:34]}  Rxd7 {[%clk 0:01:24]} 17. Rxd7 {[%clk 0:02:27]}  f6 {[%clk 0:00:59]} 18. Nxc6 {[%clk 0:01:43]}  Bxc6 {[%clk 0:00:59]} 19. Rxa7 {[%clk 0:01:36]}  Rd8 {[%clk 0:00:59]} 20. Bc3 {[%clk 0:01:33]}  Be4 {[%clk 0:00:48]} 21. b4 {[%clk 0:01:25]}  Bf8 {[%clk 0:00:47]} 22. f3 {[%clk 0:01:24]}  Bb1 {[%clk 0:00:39]} 23. Bc4 {[%clk 0:01:18]}  Rd6 {[%clk 0:00:30]} 24. b5 {[%clk 0:01:05]}  h5 {[%clk 0:00:28]} 25. Kf2 {[%clk 0:01:03]}  Kh7 {[%clk 0:00:25]} 26. Bxf6 {[%clk 0:00:54]}  Rd2+ {[%clk 0:00:22]} 27. Kg3 {[%clk 0:00:52]}  Bd6+ {[%clk 0:00:11]} 28. f4 {[%clk 0:00:52]}  Be4 {[%clk 0:00:09]} 29. Rxg7+ {[%clk 0:00:45]}  Kh6 {[%clk 0:00:09]} 30. Kh3 {[%clk 0:00:31]}  Bf5+ {[%clk 0:00:09]} 31. Kh4 {[%clk 0:00:30]}  Bg4 {[%clk 0:00:09]} 32. Rg5 {[%clk 0:00:19]}  Rxg2 {[%clk 0:00:04]} 33. Bd3 {[%clk 0:00:13]}  Rxh2+ {[%clk 0:00:02]} 34. Kg3 {[%clk 0:00:14]}  Rh3+ {[%clk 0:00:03]} 35. Kg2 {[%clk 0:00:15]}  Rf3 {[%clk 0:00:03]} 36. Bg7# {[%clk 0:00:14]} 1-0


[Site "https://www.chess.com"]

[Event "Titled Tuesday Blitz June 20 Late 2023"]
[White "O`Gorman, Tom"]
[Black "Buchenau, Frank"]
[WhiteFideId "2508249"]
[BlackFideId "4604350"]
[WhiteElo "2299"]
[BlackElo "2157"]
[Result "1-0"]
[Round "7"]
[TimeControl "180+2"]
[Date "2023.06.20"]
[WhiteClock "0:01:24"]
[BlackClock "0:00:11"]
[Board "83"]

1. Nf3 {[%clk 0:03:00]}  Nf6 {[%clk 0:02:58]} 2. g3 {[%clk 0:03:01]}  b6 {[%clk 0:02:57]} 3. Bg2 {[%clk 0:03:01]}  Bb7 {[%clk 0:02:57]} 4. O-O {[%clk 0:03:01]}  e6 {[%clk 0:02:57]} 5. d4 {[%clk 0:03:00]}  Be7 {[%clk 0:02:56]} 6. c4 {[%clk 0:02:58]}  O-O {[%clk 0:02:56]} 7. Qc2 {[%clk 0:02:55]}  c5 {[%clk 0:02:54]} 8. dxc5 {[%clk 0:02:51]}  bxc5 {[%clk 0:02:53]} 9. Nc3 {[%clk 0:02:50]}  Nc6 {[%clk 0:02:47]} 10. Rd1 {[%clk 0:02:48]}  Qb6 {[%clk 0:02:45]} 11. b3 {[%clk 0:02:45]}  Rfd8 {[%clk 0:02:44]} 12. Bf4 {[%clk 0:02:44]}  d6 {[%clk 0:02:34]} 13. Rac1 {[%clk 0:02:42]}  Rac8 {[%clk 0:02:17]} 14. Na4 {[%clk 0:02:30]}  Qa5 {[%clk 0:02:13]} 15. Qd2 {[%clk 0:02:23]}  Qxd2 {[%clk 0:02:05]} 16. Nxd2 {[%clk 0:02:24]}  Ba8 {[%clk 0:01:59]} 17. Kf1 {[%clk 0:02:21]}  h6 {[%clk 0:01:24]} 18. Nb1 {[%clk 0:02:12]}  e5 {[%clk 0:01:06]} 19. Bd2 {[%clk 0:02:06]}  Nd4 {[%clk 0:01:00]} 20. Bxa8 {[%clk 0:02:03]}  Rxa8 {[%clk 0:01:01]} 21. e3 {[%clk 0:02:03]}  Nf3 {[%clk 0:01:01]} 22. Kg2 {[%clk 0:01:58]}  Nxd2 {[%clk 0:00:56]} 23. Rxd2 {[%clk 0:01:59]}  Ne4 {[%clk 0:00:53]} 24. Rdd1 {[%clk 0:01:58]}  f5 {[%clk 0:00:53]} 25. Nbc3 {[%clk 0:01:57]}  Nf6 {[%clk 0:00:49]} 26. Nd5 {[%clk 0:01:55]}  Nxd5 {[%clk 0:00:48]} 27. Rxd5 {[%clk 0:01:56]}  Kf7 {[%clk 0:00:45]} 28. Rcd1 {[%clk 0:01:55]}  Ke6 {[%clk 0:00:45]} 29. Nc3 {[%clk 0:01:53]}  a6 {[%clk 0:00:42]} 30. R5d2 {[%clk 0:01:52]}  Rf8 {[%clk 0:00:38]} 31. Nd5 {[%clk 0:01:51]}  Bd8 {[%clk 0:00:38]} 32. e4 {[%clk 0:01:45]}  f4 {[%clk 0:00:31]} 33. f3 {[%clk 0:01:41]}  fxg3 {[%clk 0:00:26]} 34. hxg3 {[%clk 0:01:40]}  Ra7 {[%clk 0:00:16]} 35. Ne3 {[%clk 0:01:38]}  a5 {[%clk 0:00:15]} 36. Rxd6+ {[%clk 0:01:29]}  Kf7 {[%clk 0:00:11]} 37. Rxd8 {[%clk 0:01:24]} 1-0


[Site "https://www.chess.com"]

[Event "Titled Tuesday Blitz June 20 Late 2023"]
[White "Stachanczyk, Jacek"]
[Black "Ozates, Tuna"]
[WhiteFideId "1116657"]
[BlackFideId "6354521"]
[WhiteElo "2084"]
[BlackElo "2151"]
[Result "0-1"]
[Round "7"]
[TimeControl "180+2"]
[Date "2023.06.20"]
[WhiteClock "0:00:07"]
[BlackClock "0:00:09"]
[Board "87"]

1. e4 {[%clk 0:02:56]}  e5 {[%clk 0:02:52]} 2. Nf3 {[%clk 0:02:53]}  Nc6 {[%clk 0:02:51]} 3. d4 {[%clk 0:02:51]}  exd4 {[%clk 0:02:44]} 4. Nxd4 {[%clk 0:02:52]}  Bc5 {[%clk 0:02:44]} 5. Nxc6 {[%clk 0:02:52]}  Qf6 {[%clk 0:02:42]} 6. Qf3 {[%clk 0:02:52]}  Qxc6 {[%clk 0:02:30]} 7. Nc3 {[%clk 0:02:51]}  a6 {[%clk 0:02:28]} 8. Bd2 {[%clk 0:02:30]}  Ne7 {[%clk 0:02:20]} 9. Qg3 {[%clk 0:02:25]}  O-O {[%clk 0:02:18]} 10. O-O-O {[%clk 0:02:24]}  d6 {[%clk 0:02:16]} 11. f4 {[%clk 0:02:22]}  b5 {[%clk 0:02:13]} 12. f5 {[%clk 0:02:04]}  f6 {[%clk 0:02:11]} 13. Kb1 {[%clk 0:02:02]}  Kh8 {[%clk 0:01:56]} 14. Bd3 {[%clk 0:01:37]}  Bb7 {[%clk 0:01:55]} 15. h4 {[%clk 0:01:36]}  Rae8 {[%clk 0:01:54]} 16. Qf4 {[%clk 0:01:31]}  Bd4 {[%clk 0:01:53]} 17. g4 {[%clk 0:01:29]}  Qd7 {[%clk 0:01:50]} 18. g5 {[%clk 0:01:26]}  c5 {[%clk 0:01:43]} 19. g6 {[%clk 0:01:19]}  h6 {[%clk 0:01:42]} 20. Qg4 {[%clk 0:01:20]}  Ng8 {[%clk 0:01:26]} 21. b3 {[%clk 0:01:06]}  Be5 {[%clk 0:01:18]} 22. Ne2 {[%clk 0:00:53]}  d5 {[%clk 0:01:17]} 23. exd5 {[%clk 0:00:51]}  Bxd5 {[%clk 0:01:17]} 24. Rh3 {[%clk 0:00:48]}  c4 {[%clk 0:01:16]} 25. Bc1 {[%clk 0:00:25]}  cxd3 {[%clk 0:01:10]} 26. Rhxd3 {[%clk 0:00:26]}  Qc6 {[%clk 0:00:59]} 27. Rxd5 {[%clk 0:00:25]}  Rc8 {[%clk 0:00:59]} 28. R5d2 {[%clk 0:00:18]}  Rfd8 {[%clk 0:00:56]} 29. Bb2 {[%clk 0:00:14]}  Rxd2 {[%clk 0:00:38]} 30. Rxd2 {[%clk 0:00:15]}  Qh1+ {[%clk 0:00:38]} 31. Nc1 {[%clk 0:00:13]}  Bxb2 {[%clk 0:00:30]} 32. Kxb2 {[%clk 0:00:14]}  Qc6 {[%clk 0:00:23]} 33. Qd4 {[%clk 0:00:14]}  Qf3 {[%clk 0:00:21]} 34. Qd5 {[%clk 0:00:12]}  Qc3+ {[%clk 0:00:18]} 35. Kb1 {[%clk 0:00:12]}  Qg3 {[%clk 0:00:10]} 36. Ne2 {[%clk 0:00:10]}  Qxh4 {[%clk 0:00:10]} 37. Nd4 {[%clk 0:00:08]}  Qe1+ {[%clk 0:00:10]} 38. Kb2 {[%clk 0:00:08]}  Qxd2 {[%clk 0:00:10]} 39. Qd7 {[%clk 0:00:07]}  Rxc2+ {[%clk 0:00:09]} 0-1


[Site "https://www.chess.com"]

[Event "Titled Tuesday Blitz June 20 Late 2023"]
[White "sebastianmarinp"]
[Black "FoxOnTheRun97"]
[WhiteElo "2378"]
[BlackElo "2527"]
[Result "1-0"]
[Round "7"]
[TimeControl "180+2"]
[Date "2023.06.20"]
[WhiteClock "0:01:01"]
[BlackClock "0:00:18"]
[Board "88"]

1. e4 {[%clk 0:03:00]}  e6 {[%clk 0:02:58]} 2. d4 {[%clk 0:02:59]}  d5 {[%clk 0:02:58]} 3. Nc3 {[%clk 0:02:59]}  Nf6 {[%clk 0:02:57]} 4. e5 {[%clk 0:02:57]}  Nfd7 {[%clk 0:02:57]} 5. f4 {[%clk 0:02:57]}  c5 {[%clk 0:02:57]} 6. Nf3 {[%clk 0:02:56]}  Nc6 {[%clk 0:02:56]} 7. Be3 {[%clk 0:02:56]}  Qb6 {[%clk 0:02:55]} 8. Na4 {[%clk 0:02:55]}  Qa5+ {[%clk 0:02:54]} 9. c3 {[%clk 0:02:54]}  cxd4 {[%clk 0:02:52]} 10. b4 {[%clk 0:02:54]}  Qc7 {[%clk 0:02:48]} 11. Nxd4 {[%clk 0:02:49]}  Nxd4 {[%clk 0:02:44]} 12. Bxd4 {[%clk 0:02:50]}  Be7 {[%clk 0:02:22]} 13. Bd3 {[%clk 0:02:49]}  g5 {[%clk 0:02:11]} 14. O-O {[%clk 0:02:40]}  gxf4 {[%clk 0:02:10]} 15. Qh5 {[%clk 0:02:40]}  Nf8 {[%clk 0:01:39]} 16. Rxf4 {[%clk 0:02:34]}  Ng6 {[%clk 0:01:39]} 17. Rxf7 {[%clk 0:02:09]}  Kxf7 {[%clk 0:01:40]} 18. Bxg6+ {[%clk 0:02:08]}  Kg7 {[%clk 0:01:40]} 19. Bd3 {[%clk 0:02:06]}  Qd8 {[%clk 0:01:05]} 20. Qg4+ {[%clk 0:01:44]}  Bg5 {[%clk 0:00:51]} 21. h4 {[%clk 0:01:44]}  b6 {[%clk 0:00:41]} 22. Be3 {[%clk 0:01:33]}  h6 {[%clk 0:00:39]} 23. hxg5 {[%clk 0:01:31]}  h5 {[%clk 0:00:37]} 24. Qf4 {[%clk 0:01:10]}  Rf8 {[%clk 0:00:25]} 25. Qh4 {[%clk 0:01:09]}  Qe8 {[%clk 0:00:24]} 26. g6 {[%clk 0:01:05]}  Qxa4 {[%clk 0:00:18]} 27. Qe7+ {[%clk 0:01:01]} 1-0


[Site "https://www.chess.com"]

[Event "Titled Tuesday Blitz June 20 Late 2023"]
[White "Buscar, Michael"]
[Black "whiteglovethief"]
[WhiteFideId "2603616"]
[WhiteElo "2010"]
[BlackElo "2521"]
[Result "1-0"]
[Round "7"]
[TimeControl "180+2"]
[Date "2023.06.20"]
[WhiteClock "0:00:29"]
[BlackClock "0:00:55"]
[Board "90"]

1. d4 {[%clk 0:02:52]}  Nf6 {[%clk 0:02:59]} 2. c4 {[%clk 0:02:51]}  g6 {[%clk 0:02:59]} 3. Nc3 {[%clk 0:02:50]}  Bg7 {[%clk 0:03:00]} 4. e4 {[%clk 0:02:50]}  d6 {[%clk 0:03:00]} 5. Nf3 {[%clk 0:02:50]}  O-O {[%clk 0:03:01]} 6. h3 {[%clk 0:02:51]}  e5 {[%clk 0:02:59]} 7. d5 {[%clk 0:02:50]}  a5 {[%clk 0:02:58]} 8. Be3 {[%clk 0:02:48]}  Na6 {[%clk 0:02:58]} 9. g4 {[%clk 0:02:41]}  Nc5 {[%clk 0:02:58]} 10. Qc2 {[%clk 0:02:41]}  Nfd7 {[%clk 0:02:58]} 11. O-O-O {[%clk 0:02:31]}  Nb6 {[%clk 0:02:58]} 12. Be2 {[%clk 0:02:17]}  Bd7 {[%clk 0:02:56]} 13. Rdg1 {[%clk 0:02:15]}  Kh8 {[%clk 0:02:55]} 14. h4 {[%clk 0:02:15]}  f5 {[%clk 0:02:47]} 15. gxf5 {[%clk 0:02:10]}  gxf5 {[%clk 0:02:48]} 16. Rxg7 {[%clk 0:01:54]}  Kxg7 {[%clk 0:02:47]} 17. Bg5 {[%clk 0:01:54]}  Qe8 {[%clk 0:02:44]} 18. h5 {[%clk 0:01:55]}  h6 {[%clk 0:02:37]} 19. Be3 {[%clk 0:01:50]}  Nxe4 {[%clk 0:02:34]} 20. Nxe4 {[%clk 0:01:49]}  fxe4 {[%clk 0:02:35]} 21. Qxe4 {[%clk 0:01:48]}  Bf5 {[%clk 0:02:34]} 22. Rg1+ {[%clk 0:01:48]}  Kh7 {[%clk 0:02:31]} 23. Qh4 {[%clk 0:01:46]}  Rf7 {[%clk 0:02:13]} 24. Ng5+ {[%clk 0:01:36]}  hxg5 {[%clk 0:02:12]} 25. Qxg5 {[%clk 0:01:36]}  Qf8 {[%clk 0:02:03]} 26. h6 {[%clk 0:01:33]}  Rf6 {[%clk 0:01:52]} 27. Bh5 {[%clk 0:00:53]}  Qxh6 {[%clk 0:01:46]} 28. Qh4 {[%clk 0:00:40]}  Rg8 {[%clk 0:00:58]} 29. Rxg8 {[%clk 0:00:30]}  Kxg8 {[%clk 0:00:59]} 30. Bxh6 {[%clk 0:00:29]}  Rxh6 {[%clk 0:00:55]} 31. Qg5+ {[%clk 0:00:29]} 1-0


[Site "https://www.chess.com"]

[Event "Titled Tuesday Blitz June 20 Late 2023"]
[White "Hambleton, Aman"]
[Black "Florianovitz, Derlei Alex"]
[WhiteFideId "2606577"]
[BlackFideId "2114178"]
[WhiteElo "2511"]
[BlackElo "1953"]
[Result "1-0"]
[Round "7"]
[TimeControl "180+2"]
[Date "2023.06.20"]
[WhiteClock "0:00:04"]
[BlackClock "0:00:20"]
[Board "97"]

1. e4 {[%clk 0:03:00]}  e6 {[%clk 0:03:00]} 2. Nf3 {[%clk 0:02:56]}  d5 {[%clk 0:03:00]} 3. Nc3 {[%clk 0:02:57]}  Nf6 {[%clk 0:02:57]} 4. d3 {[%clk 0:02:57]}  dxe4 {[%clk 0:02:56]} 5. Nxe4 {[%clk 0:02:58]}  Nxe4 {[%clk 0:02:55]} 6. dxe4 {[%clk 0:02:59]}  Qxd1+ {[%clk 0:02:55]} 7. Kxd1 {[%clk 0:03:00]}  Bc5 {[%clk 0:02:55]} 8. Ke1 {[%clk 0:02:59]}  Nc6 {[%clk 0:02:54]} 9. c3 {[%clk 0:02:59]}  O-O {[%clk 0:02:53]} 10. Bf4 {[%clk 0:02:58]}  Bb6 {[%clk 0:02:51]} 11. Bb5 {[%clk 0:02:58]}  Bd7 {[%clk 0:02:50]} 12. Rd1 {[%clk 0:02:56]}  Rad8 {[%clk 0:02:45]} 13. Ke2 {[%clk 0:02:38]}  Nb8 {[%clk 0:02:34]} 14. Bxd7 {[%clk 0:02:37]}  Rxd7 {[%clk 0:02:33]} 15. Ne5 {[%clk 0:02:33]}  Rdd8 {[%clk 0:02:30]} 16. Nc4 {[%clk 0:02:31]}  f6 {[%clk 0:02:23]} 17. Nxb6 {[%clk 0:01:09]}  cxb6 {[%clk 0:02:24]} 18. Rxd8 {[%clk 0:01:08]}  Rxd8 {[%clk 0:02:22]} 19. Bc7 {[%clk 0:01:08]}  Rc8 {[%clk 0:02:20]} 20. Bxb8 {[%clk 0:01:09]}  Rxb8 {[%clk 0:02:20]} 21. Rd1 {[%clk 0:01:10]}  Rf8 {[%clk 0:02:16]} 22. e5 {[%clk 0:01:00]}  h6 {[%clk 0:02:05]} 23. Rd6 {[%clk 0:00:52]}  fxe5 {[%clk 0:01:36]} 24. Rxe6 {[%clk 0:00:51]}  Kf7 {[%clk 0:01:36]} 25. Rxe5 {[%clk 0:00:51]}  Rd8 {[%clk 0:01:31]} 26. c4 {[%clk 0:00:46]}  Kf6 {[%clk 0:01:20]} 27. Rd5 {[%clk 0:00:19]}  Rxd5 {[%clk 0:01:04]} 28. cxd5 {[%clk 0:00:20]}  Ke5 {[%clk 0:01:05]} 29. Ke3 {[%clk 0:00:20]}  Kxd5 {[%clk 0:01:05]} 30. f4 {[%clk 0:00:21]}  b5 {[%clk 0:01:05]} 31. g4 {[%clk 0:00:10]}  a5 {[%clk 0:01:04]} 32. Kd3 {[%clk 0:00:07]}  b4 {[%clk 0:00:59]} 33. b3 {[%clk 0:00:06]}  b5 {[%clk 0:00:59]} 34. Ke3 {[%clk 0:00:06]}  g6 {[%clk 0:00:46]} 35. Kd3 {[%clk 0:00:06]}  g5 {[%clk 0:00:39]} 36. Ke3 {[%clk 0:00:01]}  gxf4+ {[%clk 0:00:31]} 37. Kxf4 {[%clk 0:00:02]}  Kd4 {[%clk 0:00:31]} 38. h4 {[%clk 0:00:03]}  Kc3 {[%clk 0:00:27]} 39. g5 {[%clk 0:00:03]}  hxg5+ {[%clk 0:00:27]} 40. hxg5 {[%clk 0:00:04]}  Kb2 {[%clk 0:00:27]} 41. g6 {[%clk 0:00:05]}  Kxa2 {[%clk 0:00:28]} 42. g7 {[%clk 0:00:06]}  Kxb3 {[%clk 0:00:29]} 43. g8=Q+ {[%clk 0:00:07]}  Ka3 {[%clk 0:00:28]} 44. Ke3 {[%clk 0:00:06]}  b3 {[%clk 0:00:28]} 45. Kd2 {[%clk 0:00:06]}  b4 {[%clk 0:00:27]} 46. Kc1 {[%clk 0:00:06]}  b2+ {[%clk 0:00:21]} 47. Kb1 {[%clk 0:00:05]}  a4 {[%clk 0:00:20]} 48. Qa2# {[%clk 0:00:04]} 1-0


[Site "https://www.chess.com"]